bitfinex/quotes_SOLUSD_20260202
["timestamp","ask_amount","ask_price","bid_price","bid_amount"]
[1769998575927,13.17280093,102.45,102.41,9.76467141]
[1769998576129,9.16149503,102.46,102.42,3.96523908]
[1769998576316,13.17280093,102.47,102.42,3.96523908]
[1769998576512,63.01842707,102.55,102.46,13.12673411]
[1769998576513,4.0113059,102.53,102.46,13.12673411]
[1769998576722,4.0113059,102.51,102.47,9.16149503]
[1769998576926,4.0113059,102.51,102.46,13.12673411]
[1769998577112,4.0113059,102.51,102.47,43.31783347]
[1769998577425,4.0113059,102.54,102.49,13.12673411]
[1769998577603,4.0113059,102.54,102.49,3.96523908]
[1769998577808,4.0113059,102.54,102.49,13.12673411]
[1769998578345,4.0113059,102.53,102.48,36.28149503]
[1769998578519,13.17280093,102.52,102.48,27.12]
[1769998578834,13.17280093,102.51,102.48,27.12]
[1769998579440,18.91308239,102.55,102.47,9.75895384]
[1769998579441,13.17280093,102.5,102.47,9.75895384]
[1769998580222,4.0113059,102.5,102.48,9.75796349]
[1769998580534,13.17280093,102.5,102.47,9.75849707]
[1769998580827,13.17280093,102.5,102.46,9.75947597]
[1769998581020,4.0113059,102.49,102.46,9.75947597]
[1769998581219,13.17280093,102.49,102.45,27.12]
[1769998581434,9.16149503,102.48,102.45,27.12]
[1769998581928,13.17280093,102.47,102.43,9.76229642]
[1769998582122,13.17280093,102.47,102.44,9.76157156]
[1769998582429,9.16149503,102.45,102.42,9.76334752]
[1769998582629,9.16149503,102.45,102.43,9.76269726]
[1769998583127,9.16149503,102.45,102.42,9.76324915]
[1769998583326,9.16149503,102.44,102.41,9.76458687]
[1769998584033,13.17280093,102.45,102.41,9.76458687]
[1769998584233,9.16149503,102.46,102.42,3.96523908]
[1769998585436,4.0113059,102.46,102.43,9.76276481]
[1769998585612,9.16149503,102.49,102.43,18.92425984]
[1769998585919,24.38977738,102.51,102.46,13.12673411]
[1769998585920,4.0113059,102.51,102.46,13.12673411]
[1769998586125,13.17280093,102.51,102.46,40.24673411]
[1769998586518,4.0113059,102.51,102.47,9.16149503]
[1769998586728,13.17280093,102.52,102.47,3.96523908]
[1769998586925,13.17280093,102.51,102.46,40.24673411]
[1769998587131,4.0113059,102.51,102.46,40.24673411]
[1769998587324,13.17280093,102.51,102.46,40.24673411]
[1769998587536,22.92799885,102.51,102.47,9.75895384]
[1769998588034,13.17280093,102.51,102.47,9.75895384]
[1769998588248,13.17280093,102.48,102.44,24.40342296]
[1769998588733,9.16149503,102.48,102.45,9.76037811]
[1769998589637,13.17280093,102.48,102.44,9.76135627]
[1769998589812,13.17280093,102.48,102.44,34.16588575]
[1769998590234,9.16149503,102.47,102.44,9.76135627]
[1769998590431,13.17280093,102.45,102.41,9.76464855]
[1769998590635,13.17280093,102.44,102.41,9.76400922]
[1769998591036,9.16149503,102.45,102.42,9.76341717]
[1769998591624,9.16149503,102.45,102.41,34.17588078]
[1769998591625,9.16149503,102.44,102.41,34.17588078]
[1769998594044,9.16149503,102.46,102.43,3.96523908]
[1769998594248,9.16149503,102.47,102.43,13.12673411]
[1769998594447,9.16149503,102.49,102.45,3.96523908]
[1769998594633,9.16149503,102.5,102.45,13.12673411]
[1769998594827,9.16149503,102.49,102.45,3.96523908]
[1769998595021,9.75561135,102.51,102.44,27.12]
[1769998595022,13.17280093,102.48,102.44,27.12]
[1769998595246,9.16149503,102.46,102.42,9.16149503]
[1769998595439,4.0113059,102.42,102.36,3.96523908]
[1769998595635,9.16149503,102.43,102.4,13.73077508]
[1769998595838,4.0113059,102.44,102.4,9.765536]
[1769998596145,9.16149503,102.41,102.38,13.7321163]
[1769998596348,9.16149503,102.41,102.37,9.76801245]
[1769998596349,13.17280093,102.41,102.37,9.76801245]
[1769998596526,9.16149503,102.4,102.36,3.96523908]
[1769998597151,4.0113059,102.41,102.36,13.12673411]
[1769998597152,13.17280093,102.41,102.36,13.12673411]
[1769998597345,13.7726502,102.45,102.4,9.76546508]
[1769998597559,13.17280093,102.44,102.4,9.76546508]
[1769998597741,9.16149503,102.43,102.4,9.76546508]
[1769998598037,9.16149503,102.42,102.39,13.73154252]
[1769998598241,9.16149503,102.42,102.39,9.76630344]
[1769998598749,12.86102275,102.43,102.39,34.18275035]
[1769998599838,9.16149503,102.44,102.4,3.88703275]
[1769998600042,9.16149503,102.44,102.41,9.76467141]
[1769998600443,12.86102275,102.45,102.41,34.17634995]
[1769998601336,3.69952772,102.41,102.36,3.88703275]
[1769998601538,9.16149503,102.4,102.37,9.7680342]
[1769998601738,9.16149503,102.38,102.34,164.88734376]
[1769998601938,9.16149503,102.38,102.35,9.76983425]
[1769998602256,9.16149503,102.38,102.27,78.49194645]
[1769998602257,12.86102275,102.36,102.32,9.77278717]
[1769998602456,9.16149503,102.35,102.3,40.16852778]
[1769998602831,9.16149503,102.35,102.31,4.08703275]
[1769998603064,9.16149503,102.37,102.34,9.77103927]
[1769998604068,12.86102275,102.35,102.31,9.97378961]
[1769998604243,12.86102275,102.34,102.31,0.2]
[1769998604436,12.86102275,102.34,102.31,9.97413745]
[1769998604741,9.16149503,102.33,102.31,0.2]
[1769998604940,12.86102275,102.34,102.31,9.97396503]
[1769998605356,9.16149503,102.34,102.31,9.97396503]
[1769998606562,9.16149503,102.36,102.31,47.31758156]
[1769998606748,9.16149503,102.36,102.31,74.43758156]
[1769998606936,9.16149503,102.36,102.31,9.36149503]
[1769998606937,13.13709486,102.35,102.31,9.36149503]
[1769998607137,9.16149503,102.32,102.29,9.77558079]
[1769998607467,9.16149503,102.34,102.31,9.77421561]
[1769998607653,9.16149503,102.33,102.3,9.7747243]
[1769998607960,9.16149503,102.33,102.31,9.77421561]
[1769998608164,9.16149503,102.33,102.3,9.77474779]
[1769998608352,13.1667316,102.31,102.28,0.2]
[1769998608667,9.19113177,102.31,102.29,9.77608585]
[1769998609153,9.19113177,102.32,102.29,9.77608585]
[1769998609661,13.1667316,102.33,102.29,34.21640259]
[1769998609834,9.19113177,102.32,102.29,9.77608585]
[1769998610039,9.19113177,102.31,102.29,9.77608585]
[1769998611742,9.19113177,102.3,102.28,9.97686459]
[1769998611939,13.1667316,102.3,102.28,0.2]
[1769998612145,13.1667316,102.29,102.25,146.19861193]
[1769998612339,9.19113177,102.28,102.25,136.41914867]
[1769998612540,9.19113177,102.28,102.25,146.19858833]
[1769998612739,13.1667316,102.29,102.25,136.41914867]
[1769998613159,13.1667316,102.29,102.26,9.77889894]
[1769998614063,9.19113177,102.28,102.25,146.19862771]
[1769998614264,13.1667316,102.28,102.25,146.19862771]
[1769998614471,13.1667316,102.28,102.21,4.27527085]
[1769998614472,9.19113177,102.26,102.22,24.45529329]
[1769998614762,9.19113177,102.26,102.23,9.7815998]
[1769998614974,9.19113177,102.24,102.22,27.14]
[1769998615142,12.89693794,102.26,102.22,27.14]
[1769998615347,9.19113177,102.24,102.22,27.14]
[1769998615857,9.19113177,102.26,102.22,30.88658246]
[1769998616366,9.19113177,102.25,102.22,40.66910071]
[1769998616754,9.19113177,102.25,102.22,13.52910071]
[1769998617855,9.19113177,102.26,102.23,3.74658246]
[1769998618166,9.19113177,102.26,102.22,9.78251825]
[1769998618366,9.19113177,102.25,102.22,9.78251825]
[1769998618967,9.19113177,102.25,102.21,40.67023141]
[1769998619172,3.12337837,102.26,102.21,40.67023141]
[1769998619173,9.19113177,102.24,102.21,40.67023141]
[1769998620080,9.19113177,102.23,102.21,27.14]
[1769998620470,3.1262993,102.27,102.21,40.6701903]
[1769998620767,9.19113177,102.25,102.21,40.6701903]
[1769998620947,3.1262993,102.26,102.21,40.6701903]
[1769998620948,9.19113177,102.24,102.21,40.6701903]
[1769998621343,9.19113177,102.23,102.21,27.14]
[1769998621552,9.19113177,102.22,102.19,13.53214215]
[1769998621754,9.19113177,102.21,102.19,9.78555969]
[1769998621965,9.19113177,102.22,102.19,13.53214215]
[1769998622475,9.19113177,102.2,102.18,27.36]
[1769998622765,9.19113177,102.22,102.19,13.53227577]
[1769998623170,9.19113177,102.25,102.21,3.74658246]
[1769998623465,9.19113177,102.25,102.21,27.16]
[1769998623466,9.19113177,102.23,102.21,27.16]
[1769998623664,9.19113177,102.22,102.19,13.53227577]
[1769998623863,9.19113177,102.23,102.19,13.53227577]
[1769998624275,9.19113177,102.23,102.19,37.99650906]
[1769998625453,9.19113177,102.25,102.2,12.93771423]
[1769998625654,9.19113177,102.24,102.19,47.18764083]
[1769998625865,9.19113177,102.22,102.19,13.53227577]
[1769998626477,9.19113177,102.21,102.19,9.78569331]
[1769998626670,9.19113177,102.21,102.18,9.9862104]
[1769998627476,9.19113177,102.21,102.18,0.2]
[1769998627664,9.19113177,102.2,102.18,0.2]
[1769998627859,12.91937096,102.24,102.18,4.16728074]
[1769998628062,9.19113177,102.23,102.19,3.96728074]
[1769998628266,9.19113177,102.25,102.21,3.96728074]
[1769998628461,18.9713215,102.25,102.21,13.75077757]
[1769998628755,9.19113177,102.25,102.21,13.75077757]
[1769998629374,3.14077052,102.28,102.23,3.96728074]
[1769998629578,9.19113177,102.27,102.23,3.96728074]
[1769998629783,9.19113177,102.27,102.23,13.15841251]
[1769998630878,9.19113177,102.27,102.23,13.74846428]
[1769998631281,9.19113177,102.29,102.25,3.96728074]
[1769998631582,9.19113177,102.27,102.24,31.12728074]
[1769998631879,9.19113177,102.28,102.24,31.12728074]
[1769998632490,18.96584001,102.31,102.26,13.15841251]
[1769998632781,9.19113177,102.3,102.26,13.15841251]
[1769998633276,9.19113177,102.3,102.27,9.77803852]
[1769998633978,18.96642417,102.3,102.26,22.93713884]
[1769998634179,9.19113177,102.28,102.25,13.7468484]
[1769998634481,9.19113177,102.26,102.23,13.74864743]
[1769998634980,9.19113177,102.27,102.24,9.78065877]
[1769998635185,9.19113177,102.29,102.25,3.96728074]
[1769998635783,9.19113177,102.3,102.27,3.96728074]
[1769998635996,9.19113177,102.32,102.28,3.96728074]
[1769998636365,3.14995033,102.36,102.3,13.15841251]
[1769998636591,9.19113177,102.34,102.3,3.96728074]
[1769998637086,3.14995033,102.3,102.22,3.96728074]
[1769998637284,9.19113177,102.31,102.22,3.96728074]
[1769998637285,3.70308505,102.31,102.23,3.96728074]
[1769998637476,3.70308505,102.33,102.27,3.96728074]
[1769998637679,3.70308505,102.33,102.28,13.15841251]
[1769998637876,3.70308505,102.33,102.29,13.15841251]
[1769998638062,12.89421682,102.31,102.26,9.19113177]
[1769998638385,12.89421682,102.31,102.26,3.96728074]
[1769998638583,12.89421682,102.3,102.26,3.96728074]
[1769998638787,12.89421682,102.27,102.22,13.7499596]
[1769998639084,9.19113177,102.26,102.22,3.96728074]
[1769998639292,3.70308505,102.27,102.22,3.96728074]
[1769998639293,9.19113177,102.27,102.23,9.78186442]
[1769998639494,9.19113177,102.27,102.22,13.74996491]
[1769998639677,9.19113177,102.27,102.22,22.94109668]
[1769998639866,9.19113177,102.27,102.22,13.74996491]
[1769998640193,9.19113177,102.27,102.22,22.94109668]
[1769998640395,12.89421682,102.27,102.22,22.94109668]
[1769998640564,9.19113177,102.26,102.22,3.96728074]
[1769998640767,9.19113177,102.25,102.22,13.75008848]
[1769998640971,12.89421682,102.28,102.23,13.15841251]
[1769998641185,9.19113177,102.26,102.22,9.78280774]
[1769998641374,9.19113177,102.26,102.22,13.75008848]
[1769998641564,12.89421682,102.27,102.22,3.96728074]
[1769998641763,12.89421682,102.26,102.21,27.16]
[1769998641968,9.19113177,102.25,102.21,27.16]
[1769998642169,12.89421682,102.25,102.2,13.75197318]
[1769998642598,9.19113177,102.24,102.2,13.75197318]
[1769998642770,9.19113177,102.24,102.2,3.96728074]
[1769998643172,12.89421682,102.25,102.2,13.75182913]
[1769998643793,9.19113177,102.24,102.2,13.75182913]
[1769998643991,13.48134947,102.27,102.21,13.15841251]
[1769998644193,24.44044578,102.29,102.24,3.96728074]
[1769998644194,12.89421682,102.29,102.24,3.96728074]
[1769998644373,12.89421682,102.29,102.24,13.15841251]
[1769998645085,23.24086999,102.31,102.25,13.15841251]
[1769998645287,12.89421682,102.3,102.25,13.15841251]
[1769998645797,3.70308505,102.3,102.26,18.96936379]
[1769998645993,3.70308505,102.3,102.26,9.77823202]
[1769998646295,9.19113177,102.31,102.26,13.74551276]
[1769998646475,12.89421682,102.32,102.28,3.96728074]
[1769998646795,3.70308505,102.32,102.28,13.15841251]
[1769998647292,9.19113177,102.35,102.3,13.15841251]
[1769998647490,3.70308505,102.35,102.29,3.96728074]
[1769998647806,9.19113177,102.33,102.29,13.74333059]
[1769998647982,22.6660161,102.34,102.29,13.74333059]
[1769998648177,9.19113177,102.33,102.29,13.74333059]
[1769998648377,9.19113177,102.33,102.28,9.77684977]
[1769998648378,9.19113177,102.32,102.28,9.77684977]
[1769998649394,3.70308505,102.33,102.29,9.77584229]
[1769998649582,9.19113177,102.32,102.29,9.77584229]
[1769998650184,9.19113177,102.3,102.26,13.74558245]
[1769998650495,9.19113177,102.29,102.25,9.77961038]
[1769998651195,12.89421682,102.29,102.25,9.77961038]
[1769998651398,9.19113177,102.29,102.26,9.77894616]
[1769998651602,12.89421682,102.3,102.26,9.77894616]
[1769998651903,22.66942773,102.3,102.26,9.77894616]
[1769998653100,3.70308505,102.3,102.26,9.77894616]
[1769998653308,12.89421682,102.3,102.26,9.77894616]
[1769998653497,9.19113177,102.31,102.26,13.7462269]
[1769998653704,12.89421682,102.32,102.26,47.38484546]
[1769998654006,22.66764537,102.32,102.26,47.38484546]
[1769998654187,12.89421682,102.3,102.26,9.77894616]
[1769998654588,9.19113177,102.31,102.27,3.96728074]
[1769998654788,12.89421682,102.32,102.27,13.15841251]
[1769998654994,22.66760306,102.32,102.27,13.15841251]
[1769998655195,9.19113177,102.31,102.27,3.96728074]
[1769998655405,3.70308505,102.29,102.25,13.74674401]
[1769998655605,9.19113177,102.3,102.26,9.77889349]
[1769998655813,12.89421682,102.29,102.23,13.15841251]
[1769998656114,9.19113177,102.28,102.24,13.74771758]
[1769998656701,9.19113177,102.26,102.22,3.96728074]
[1769998656912,9.19113177,102.25,102.22,9.78238287]
[1769998657918,9.19113177,102.25,102.21,13.7506233]
[1769998658122,18.97142984,102.25,102.21,13.7506233]
[1769998658416,18.97112151,102.25,102.21,13.7506233]
[1769998658624,9.19113177,102.25,102.21,13.7506233]
[1769998658816,22.89693251,102.25,102.21,9.78334256]
[1769998659414,13.11679079,102.25,102.21,13.55176186]
[1769998660318,3.92565902,102.3,102.24,3.7684193]
[1769998660504,9.19113177,102.3,102.25,3.7684193]
[1769998660690,13.11679079,102.31,102.26,12.95955107]
[1769998661107,3.92565902,102.31,102.27,3.7684193]
[1769998661314,3.92565902,102.31,102.27,12.95955107]
[1769998661998,3.92565902,102.31,102.27,3.7684193]
[1769998662200,22.89117627,102.31,102.27,13.54621818]
[1769998662400,9.19113177,102.3,102.26,9.77863103]
[1769998662900,9.19113177,102.3,102.26,13.54705033]
[1769998663313,9.19113177,102.3,102.27,9.77774896]
[1769998663812,9.19113177,102.3,102.26,13.54693929]
[1769998664115,18.9665777,102.3,102.26,13.54695315]
[1769998664314,9.19113177,102.3,102.26,13.54695315]
[1769998664518,9.19113177,102.29,102.26,9.77853385]
[1769998664720,9.19113177,102.28,102.25,9.7794515]
[1769998665098,13.11679079,102.29,102.26,9.77891024]
[1769998666609,3.9110984,102.28,102.25,9.77946358]
[1769998666819,13.10223017,102.27,102.23,28.27364167]
[1769998667019,3.9110984,102.26,102.23,9.78141745]
[1769998667315,3.9110984,102.26,102.2,27.16]
[1769998667316,13.10223017,102.27,102.24,9.78055293]
[1769998667815,9.19113177,102.26,102.23,9.78136158]
[1769998668016,9.19113177,102.24,102.21,9.78377849]
[1769998668316,9.19113177,102.23,102.2,13.60527578]
[1769998668514,9.20659711,102.23,102.2,3.82103698]
[1769998668822,13.11769551,102.24,102.21,9.78377849]
[1769998669030,13.11769551,102.25,102.21,9.78377849]
[1769998669232,18.9857059,102.26,102.21,22.81141258]
[1769998669407,18.9857059,102.26,102.21,47.27085881]
[1769998669603,13.11769551,102.28,102.23,13.02763409]
[1769998669810,3.9110984,102.28,102.23,13.02763409]
[1769998670007,13.11769551,102.26,102.21,74.43085881]
[1769998670331,13.11769551,102.26,102.21,65.2242617]
[1769998670332,9.20659711,102.25,102.21,65.2242617]
[1769998670512,13.11769551,102.24,102.2,9.78440911]
[1769998670835,9.20659711,102.23,102.2,9.78440911]
[1769998671040,9.20659711,102.21,102.18,37.14618356]
[1769998671538,13.11769551,102.22,102.19,9.78552825]
[1769998671726,9.20659711,102.23,102.2,3.82103698]
[1769998671916,9.20659711,102.24,102.2,3.82103698]
[1769998672113,9.20659711,102.23,102.19,9.78552825]
[1769998672444,9.20659711,102.22,102.19,9.78552825]
[1769998672663,13.11769551,102.23,102.19,9.78552825]
[1769998672825,9.20659711,102.22,102.19,9.78552825]
[1769998673335,9.20659711,102.23,102.19,38.07079852]
[1769998673710,3.9110984,102.24,102.2,3.82103698]
[1769998673934,3.9110984,102.28,102.22,3.82103698]
[1769998674133,13.11769551,102.27,102.22,13.02763409]
[1769998674520,9.20659711,102.28,102.24,9.78090766]
[1769998674923,13.11769551,102.27,102.23,9.78137939]
[1769998675115,13.11769551,102.26,102.23,9.78137939]
[1769998675425,9.20659711,102.27,102.23,9.78137939]
[1769998676140,9.20659711,102.26,102.23,9.78137939]
[1769998676435,13.11769551,102.24,102.21,9.78332136]
[1769998676638,13.11769551,102.24,102.2,40.76528663]
[1769998676840,3.9110984,102.24,102.19,13.60616468]
[1769998677023,9.20659711,102.22,102.19,13.60616468]
[1769998677424,13.11769551,102.22,102.18,9.98590803]
[1769998677640,9.20659711,102.21,102.18,9.98590803]
[1769998678146,9.20659711,102.19,102.18,0.2]
[1769998678325,9.20659711,102.19,102.17,0.3137979]
[1769998679120,13.11769551,102.2,102.17,10.10135317]
[1769998679641,9.20659711,102.2,102.18,9.78659817]
[1769998679825,9.20659711,102.2,102.17,0.3137979]
[1769998680030,13.11769551,102.2,102.17,0.3137979]
[1769998680229,8.18636925,102.24,102.17,4.13483488]
[1769998680541,9.20659711,102.19,102.17,0.3137979]
[1769998680944,13.11769551,102.18,102.15,9.78910264]
[1769998681241,13.11769551,102.22,102.17,13.60844276]
[1769998681427,9.20659711,102.2,102.17,13.60844276]
[1769998681623,9.20659711,102.24,102.2,3.82103698]
[1769998681828,13.11769551,102.24,102.2,3.82103698]
[1769998682325,13.11769551,102.24,102.2,13.6051283]
[1769998683246,9.20659711,102.21,102.18,40.78743725]
[1769998683424,9.20659711,102.22,102.18,28.28712049]
[1769998683622,3.9110984,102.23,102.14,28.29548749]
[1769998683623,13.11769551,102.19,102.14,28.29548749]
[1769998683827,9.20659711,102.18,102.14,28.29548749]
[1769998684548,9.20659711,102.18,102.14,38.08597113]
[1769998684848,9.20659711,102.17,102.14,9.79048364]
[1769998685424,9.20659711,102.16,102.13,9.7911391]
[1769998686041,9.20659711,102.15,102.12,9.79202485]
[1769998686230,9.20659711,102.13,102.09,0.2]
[1769998686426,9.20659711,102.13,102.1,9.79431929]
[1769998686643,34.25327852,102.18,102.11,3.82103698]
[1769998686824,9.20659711,102.15,102.11,3.82103698]
[1769998687025,9.20659711,102.13,102.1,9.79431929]
[1769998687244,9.20659711,102.14,102.1,13.61535627]
[1769998687664,9.20659711,102.13,102.1,13.61535627]
[1769998687830,9.20659711,102.14,102.1,38.1011545]
[1769998688030,9.20659711,102.14,102.1,13.61535627]
[1769998688231,9.20659711,102.13,102.1,13.61535627]
[1769998688431,9.20659711,102.12,102.09,9.99498461]
[1769998688633,9.20659711,102.12,102.09,0.2]
[1769998689546,9.20659711,102.14,102.1,4.04192124]
[1769998689851,9.20659711,102.13,102.09,34.48336175]
[1769998690053,9.20659711,102.13,102.09,9.99516507]
[1769998690449,12.947844,102.14,102.1,4.04192124]
[1769998690751,12.947844,102.14,102.09,19.20176218]
[1769998690752,18.99526863,102.16,102.11,13.24851835]
[1769998690943,12.947844,102.18,102.13,9.20659711]
[1769998691252,12.947844,102.15,102.11,27.18]
[1769998691433,9.20659711,102.14,102.11,27.18]
[1769998691639,9.20659711,102.14,102.1,4.04192124]
[1769998691835,9.20659711,102.13,102.09,37.17516507]
[1769998692154,9.20659711,102.12,102.09,27.38]
[1769998692356,9.20659711,102.12,102.09,9.99502872]
[1769998693054,9.20659711,102.11,102.09,0.2]
[1769998693255,9.20659711,102.12,102.09,0.2]
[1769998693754,9.20659711,102.12,102.09,9.99503929]
[1769998693935,12.947844,102.13,102.09,9.99503929]
[1769998694332,9.20659711,102.12,102.09,9.99503929]
[1769998695255,9.20659711,102.11,102.09,0.2]
[1769998696461,9.20659711,102.1,102.09,0.2]
[1769998696758,9.20659711,102.11,102.09,0.2]
[1769998697361,9.20659711,102.12,102.09,14.03705041]
[1769998697541,12.947844,102.11,102.09,0.2]
[1769998697841,9.20659711,102.1,102.09,0.2]
[1769998698256,12.947844,102.11,102.09,0.2]
[1769998698433,9.20659711,102.11,102.09,0.2]
[1769998699062,12.947844,102.1,102.07,134.16157893]
[1769998699253,9.20659711,102.09,102.07,0.2]
[1769998700743,12.947844,102.11,102.07,14.03877052]
[1769998700957,9.20659711,102.1,102.07,9.99684928]
[1769998701156,12.947844,102.1,102.07,0.2]
[1769998701353,9.20659711,102.09,102.07,0.2]
[1769998701563,12.947844,102.09,102.05,9.79870729]
[1769998701753,9.20659711,102.08,102.05,9.79870729]
[1769998702359,9.20659711,102.07,102.04,13.84153779]
[1769998702849,12.947844,102.08,102.05,9.79886054]
[1769998703261,9.20659711,102.07,102.04,13.8418079]
[1769998703561,13.53785279,102.08,102.04,13.8418079]
[1769998703562,12.947844,102.08,102.04,13.8418079]
[1769998703757,9.20659711,102.1,102.06,4.04192124]
[1769998704142,3.74124689,102.11,102.07,4.04192124]
[1769998704442,12.947844,102.11,102.07,4.04192124]
[1769998704640,22.7412535,102.11,102.07,4.04192124]
[1769998705363,12.947844,102.11,102.08,9.79623824]
[1769998706059,12.947844,102.1,102.04,28.54026754]
[1769998706369,12.947844,102.08,102.04,13.84155055]
[1769998706563,9.20659711,102.07,102.04,4.04192124]
[1769998707064,12.947844,102.08,102.04,13.84153658]
[1769998707246,9.20659711,102.07,102.04,13.84153658]
[1769998707649,3.74124689,102.08,102.04,13.84153658]
[1769998707844,12.947844,102.08,102.04,13.84153658]
[1769998708050,9.20659711,102.06,102.03,9.80061371]
[1769998708646,3.74124689,102.05,102.01,9.80256723]
[1769998708851,9.20659711,102.04,102.01,13.84448847]
[1769998709456,9.20659711,102.04,102.01,9.80256723]
[1769998709654,9.20659711,102.04,101.98,10.00577579]
[1769998709655,3.74124689,102.01,101.98,10.00577579]
[1769998709847,9.20659711,102.0,101.98,10.00577579]
[1769998710752,9.20659711,102.0,101.98,0.2]
[1769998711249,3.74124689,102.01,101.98,0.2]
[1769998711444,9.20659711,102.01,101.98,10.0055378]
[1769998711652,12.947844,102.03,101.98,23.25405615]
[1769998711865,9.20659711,102.01,101.98,10.0055378]
[1769998712272,12.947844,102.02,101.98,10.0055378]
[1769998713182,3.74124689,102.06,102.02,4.04192124]
[1769998713349,12.947844,102.07,102.02,13.24851835]
[1769998713750,9.20659711,102.08,102.03,23.04955726]
[1769998714059,22.74419199,102.08,102.03,47.55215453]
[1769998714577,3.74124689,102.1,102.05,13.24851835]
[1769998714879,12.947844,102.08,102.03,47.55215453]
[1769998715471,9.20659711,102.07,102.03,38.34555742]
[1769998715680,12.947844,102.08,102.04,4.04192124]
[1769998715866,22.74409463,102.08,102.03,47.55215453]
[1769998716386,12.947844,102.06,102.02,9.80124567]
[1769998716674,9.20659711,102.04,102.0,9.80344256]
[1769998716856,9.20659711,102.04,102.01,9.80282554]
[1769998717048,3.74124689,102.05,102.02,9.80186744]
[1769998717049,12.947844,102.05,102.02,9.80186744]
[1769998717258,5.11211266,102.14,102.06,4.04192124]
[1769998717459,5.11211266,102.14,102.09,9.20659711]
[1769998717460,9.20659711,102.14,102.09,9.20659711]
[1769998717689,18.9996763,102.12,102.07,9.797198]
[1769998717873,3.80589785,102.1,102.03,49.00519455]
[1769998718062,9.20659711,102.08,102.04,3.77319747]
[1769998718257,13.01249496,102.09,102.04,12.97979458]
[1769998718471,3.80589785,102.06,102.0,52.78989974]
[1769998718674,9.20659711,102.05,102.02,9.80137389]
[1769998719462,9.20659711,102.06,102.02,13.57457136]
[1769998719771,9.20659711,102.06,102.01,9.20659711]
[1769998719772,9.20659711,102.04,102.01,3.77319747]
[1769998719978,9.20659711,102.05,102.01,3.77319747]
[1769998720363,9.20659711,102.04,102.01,3.77319747]
[1769998720757,13.60461147,102.06,102.01,3.77319747]
[1769998720979,9.20659711,102.04,102.01,13.57562899]
[1769998721281,9.20659711,102.03,102.0,13.57675553]
[1769998721575,13.60505607,102.05,102.01,13.57614478]
[1769998721576,9.20659711,102.04,102.01,13.57614478]
[1769998721779,13.59737106,102.13,102.04,3.77319747]
[1769998721953,13.01249496,102.12,102.07,12.97979458]
[1769998722153,13.01249496,102.12,102.07,3.77319747]
[1769998722379,3.80589785,102.1,102.06,9.20659711]
[1769998722582,13.01249496,102.1,102.05,12.97979458]
[1769998722764,9.20659711,102.11,102.07,3.77319747]
[1769998723079,13.01249496,102.13,102.08,22.77603282]
[1769998723282,13.01249496,102.12,102.07,19.00340304]
[1769998724278,22.80512826,102.12,102.07,19.00340304]
[1769998724575,9.20659711,102.1,102.06,13.57093706]
[1769998724783,13.01249496,102.1,102.06,3.77319747]
[1769998725381,34.27363604,102.12,102.04,9.79992204]
[1769998725382,13.01249496,102.08,102.04,9.79992204]
[1769998725561,13.01249496,102.07,102.03,9.80061735]
[1769998725760,13.01249496,102.07,102.04,9.80005513]
[1769998726064,3.80589785,102.07,102.04,9.80005513]
[1769998727373,3.73910331,102.08,102.04,19.00665224]
[1769998727688,9.20659711,102.09,102.04,22.79469502]
[1769998727868,21.75710673,102.09,102.04,22.79469502]
[1769998728066,9.20659711,102.1,102.05,12.99463989]
[1769998728387,12.94570042,102.1,102.06,9.79798341]
[1769998728683,9.20659711,102.09,102.05,3.78804278]
[1769998729287,12.94570042,102.09,102.05,9.79898182]
[1769998730284,3.73910331,102.12,102.07,12.99463989]
[1769998730489,12.96637271,102.11,102.07,13.58471508]
[1769998730788,3.73910331,102.11,102.07,19.0239417]
[1769998731286,3.73910331,102.11,102.07,9.7966723]
[1769998731591,12.96637271,102.11,102.07,9.7966723]
[1769998732887,22.76065554,102.11,102.06,13.58581939]
[1769998733074,9.2272694,102.09,102.05,9.79876074]
[1769998733989,12.96637271,102.09,102.05,9.79876074]
[1769998734387,9.2272694,102.08,102.05,9.79876074]
[1769998734893,9.2272694,102.08,102.04,28.2865179]
[1769998734894,12.96637271,102.08,102.04,13.58768721]
[1769998735077,22.76273103,102.08,102.04,13.58768721]
[1769998735485,12.96637271,102.08,102.04,13.58768721]
[1769998736199,22.76280952,102.08,102.04,13.58768721]
[1769998736484,12.96637271,102.08,102.04,13.58768721]
[1769998736675,22.7628281,102.08,102.04,13.58768721]
[1769998736876,9.2272694,102.06,102.03,9.80064679]
[1769998737584,9.2272694,102.07,102.03,13.58868957]
[1769998738291,12.96637271,102.06,102.03,9.80064679]
[1769998738495,9.2272694,102.06,102.03,9.80064679]
[1769998738689,9.2272694,102.06,102.03,13.58868957]
[1769998740580,9.2272694,102.05,102.03,3.78804278]
[1769998740992,9.2272694,102.06,102.03,13.58880617]
[1769998741700,13.53456309,102.09,102.04,3.78804278]
[1769998741896,12.96637271,102.07,102.03,9.80076339]
[1769998742195,3.43766083,102.08,102.02,9.80150705]
[1769998742196,9.2272694,102.05,102.02,9.80150705]